fUST/lending_fUST_20240404
["ID","MTS","AMOUNT","RATE_DAILY","PERIOD"]
[321413893,1712170238663,-502.5718756,0.00045664,2]
[321413895,1712170238673,-200.0,0.00045824,2]
[321413896,1712170238682,-242.0,0.00046109,2]
[321413897,1712170238691,-2007.18866454,0.00046109,2]
[321413966,1712170243950,-12564.85114516,0.00046109,2]
[321414136,1712170248088,-10327.9601903,0.00046109,2]
[321414137,1712170248104,-1632.37325923,0.00046243,12]
[321414138,1712170248114,-166.666666,0.00046343,2]
[321414139,1712170248125,-153.0,0.00046878,2]
[321414140,1712170248137,-153.0,0.00046978,2]
[321414141,1712170248147,-153.0,0.00047479,2]
[321414142,1712170248157,-308.9314415,0.00047479,2]
[321414143,1712170248166,-166.666666,0.00047573,2]
[321414144,1712170248175,-3373.9587272,0.0004764,15]
[321414234,1712171438711,-161.052631,0.0004,2]
[321414235,1712171438720,-166.666666,0.00045278,2]
[321414236,1712171438730,-150.0,0.00045379,2]
[321414237,1712171438739,-151.54959155,0.00045783,2]
[321414238,1712171438748,-356.85611145,0.00045963,4]
[321414239,1712171438770,-3204.16965463,0.00045963,4]
[321414240,1712171438779,-151.54959147,0.00045964,2]
[321414241,1712171438788,-151.54959147,0.00046144,2]
[321414242,1712171438797,-151.54959147,0.00046325,2]
[321414243,1712171438808,-151.54959147,0.00046506,2]
[321414244,1712171438817,-166.666666,0.00046512,2]
[321414245,1712171438827,-179.518998,0.00046545,120]
[321414246,1712171438836,-151.54959147,0.00046687,2]
[321414247,1712171438845,-151.54959147,0.00046867,2]
[321414248,1712171438855,-151.54959147,0.00047048,2]
[321414249,1712171438864,-151.54959147,0.00047229,2]
[321414250,1712171438874,-151.54959147,0.00047409,2]
[321414251,1712171438883,-151.54959147,0.0004759,2]
[321414252,1712171438893,-397.20277038,0.0004764,120]
[321414253,1712171438902,-3268.3450698,0.0004764,15]
[321414270,1712171440887,-1164.90886763,0.0004764,15]
[321414271,1712171440899,-2626.83023457,0.0004764,15]
[321414272,1712171440909,-1000.0,0.00047687,120]
[321414273,1712171440918,-279.98739679,0.00047688,2]
[321414274,1712171440928,-155.05720243,0.00047688,2]
[321414275,1712171440938,-178.98774282,0.00047689,4]
[321414276,1712171440947,-4148.61612316,0.00047689,4]
[321414287,1712171443776,-1482.44489543,0.00047689,4]
[321414288,1712171443785,-387.71,0.00047689,7]
[321414289,1712171443794,-154.07890451,0.00047689,7]
[321414290,1712171443806,-233.63109549,0.00047689,7]
[321414291,1712171443815,-387.71,0.00047689,7]
[321414292,1712171443825,-387.71,0.00047689,7]
[321414293,1712171443834,-387.71,0.00047689,7]
[321414294,1712171443843,-387.71,0.00047689,7]
[321414295,1712171443852,-387.71,0.00047689,7]
[321414296,1712171443862,-387.71,0.00047689,7]
[321414297,1712171443871,-387.71,0.00047689,7]
[321414298,1712171443880,-503.10995447,0.0004769,13]
[321414299,1712171443890,-26034.65059922,0.0004769,120]
[321414472,1712172637922,-181.208423,0.0004,2]
[321414473,1712172637932,-169.713674,0.0004,2]
[321414474,1712172637941,-166.666666,0.00045277,2]
[321414475,1712172637950,-2794.6466497,0.00045589,4]
[321414490,1712172642957,-766.37911638,0.00045589,4]
[321414491,1712172642967,-369.82425559,0.0004559,2]
[321414492,1712172642976,-4015.49385815,0.00045806,2]
[321414600,1712173838159,-246.54950373,0.00043706,2]
[321414601,1712173838169,-3561.02576608,0.00043749,4]
[321414602,1712173838179,-5655.27950667,0.0004375,120]
[321414603,1712173838189,-36.69049959,0.00043873,2]
[321414607,1712173841415,-129.97616641,0.00043873,2]
[321414608,1712173841425,-2944.71573401,0.00044299,2]
[321414609,1712173841436,-3342.26104208,0.00044299,2]
[321414638,1712174032160,435.52531525,0.0002,2]
[321414639,1712174054841,9249.95210463,0.00021,5]
[321414640,1712174078682,-294.0,0.0002877,2]
[321414641,1712174078795,-6.0,0.0002877,2]
[321414642,1712174080418,154.8915749,0.0004375,120]
[321414657,1712174774483,164.36633582,0.000189,2]
[321414658,1712174774706,164.36633582,0.000239,2]
[321414661,1712174820000,154.98450155,0.000239,2]
[321414663,1712174833991,196.81742067,0.000239,2]
[321414690,1712175032405,-2807.80898399,0.00036947,4]
[321414692,1712175032414,-889.4483611,0.00036948,2]
[321414694,1712175032424,-633.47241806,0.00038795,2]
[321414695,1712175032433,-154.98450155,0.00039999,7]
[321414696,1712175032442,-161.052631,0.0004,2]
[321414697,1712175032450,-12928.0,0.0004,2]
[321414698,1712175032459,-181.208423,0.0004,2]
[321414700,1712175032468,-166.666666,0.00041096,2]
[321414702,1712175032479,-1428.32660187,0.00041462,10]
[321414703,1712175032487,-14660.1378853,0.00041538,2]
[321414706,1712175032496,-1678.75807622,0.00041563,2]
[321414709,1712175032505,-169.545723,0.00041936,120]
[321414712,1712175032515,-166.666666,0.00042192,2]
[321414715,1712175032524,-2116.8,0.00043188,2]
[321414718,1712175032533,-166.666666,0.00043289,2]
[321414721,1712175032542,-500.0,0.00043705,31]
[321414724,1712175032552,-651.04737374,0.00043705,7]
[321414725,1712175032563,-285.4399416,0.00043705,31]
[321414726,1712175032573,-12468.14414971,0.00043706,15]
[321414727,1712175032582,-151.0,0.00043732,7]
[321414728,1712175032591,-151.0,0.00043732,7]
[321414729,1712175032600,-151.0,0.00043732,7]
[321414730,1712175032610,-297.008711,0.00043732,7]
[321414731,1712175032619,-297.008711,0.00043732,7]
[321414732,1712175032629,-151.0,0.00043732,7]
[321414733,1712175032637,-151.0,0.00043732,7]
[321414734,1712175032648,-3518.76041761,0.00043733,2]
[321414735,1712175032657,-2013.68604748,0.00043733,2]
[321414736,1712175032668,-443.91282291,0.00043733,2]
[321414737,1712175032680,-1628.45938653,0.00043733,2]
[321414738,1712175032689,-397.20277038,0.0004375,120]
[321414739,1712175032699,-155.68204879,0.0004375,4]
[321414740,1712175032708,-217.92778221,0.0004375,4]
[321414741,1712175032718,-117.76505615,0.0004375,2]
[321414775,1712175038286,-657.0,0.00041461,4]
[321414898,1712175043405,-2904.02576608,0.00041461,4]
[321414900,1712175043415,-151.0,0.00043706,7]
[321414902,1712175043424,-143.37857957,0.0004375,2]
[321414904,1712175043434,-151.0,0.0004375,7]
[321414906,1712175043443,-151.0,0.0004375,7]
[321414907,1712175043452,-151.0,0.0004375,7]
[321414908,1712175043461,-297.008711,0.0004375,7]
[321414909,1712175043470,-297.008711,0.0004375,7]
[321414910,1712175043481,-157.486947,0.00043764,7]
[321414911,1712175043491,-157.486947,0.00043764,7]
[321414912,1712175043500,-151.0,0.00044087,7]
[321414913,1712175043509,-151.0,0.00044087,7]
[321414914,1712175043518,-151.0,0.00044087,7]
[321414915,1712175043529,-297.008711,0.00044087,7]
[321414916,1712175043538,-297.008711,0.00044087,7]
[321414917,1712175043549,-284.335909,0.00044087,7]
[321414918,1712175043561,-157.486947,0.00044192,7]
[321414919,1712175043571,-157.486947,0.00044192,7]
[321414920,1712175043582,-2116.8,0.00044289,2]
[321414921,1712175043592,-166.666666,0.00044385,2]
[321414922,1712175043601,-154.98450155,0.00045,4]
[321414923,1712175043611,-400.0,0.00045,2]
[321414924,1712175043623,-151.0,0.00045255,7]
[321414925,1712175043633,-151.0,0.00045255,7]
[321414926,1712175043643,-151.0,0.00045255,7]
[321414927,1712175043654,-297.008711,0.00045255,7]
[321414928,1712175043664,-297.008711,0.00045255,7]
[321414929,1712175043674,-2116.8,0.00045389,2]
[321414930,1712175043684,-573.79894028,0.0004548,4]
[321414931,1712175043695,-166.666666,0.00045481,2]
[321414932,1712175043704,-157.486947,0.00045658,7]
[321414933,1712175043714,-157.486947,0.00045658,7]
[321414934,1712175043723,-185.19378721,0.00045757,120]
[321414935,1712175043733,-245.13917468,0.00045757,120]
[321414936,1712175043742,-419.83596069,0.00045757,120]
[321414937,1712175043751,-157.486947,0.00045758,7]
[321414938,1712175043761,-157.486947,0.00045758,7]
[321414939,1712175043771,-157.486947,0.00045758,7]
[321414940,1712175043780,-131.90834883,0.00045758,7]
[321414941,1712175043793,-25.57859817,0.00045758,7]
[321414942,1712175043802,-157.486947,0.00045758,7]
[321414943,1712175043811,-157.486947,0.00045758,7]
[321414944,1712175043820,-238.534579,0.00045758,7]
[321414945,1712175043829,-151.0,0.00045758,7]
[321414946,1712175043838,-151.0,0.00045758,7]
[321414947,1712175043848,-151.0,0.00045758,7]
[321414948,1712175043857,-151.0,0.00045758,7]
[321414949,1712175043866,-151.0,0.00045758,7]
[321414950,1712175043875,-151.0,0.00045758,7]
[321414951,1712175043885,-151.0,0.00045758,7]
[321414952,1712175043894,-294.44193,0.00045758,7]
[321414953,1712175043903,-297.008711,0.00045758,7]
[321414954,1712175043912,-297.008711,0.00045758,7]
[321414955,1712175043921,-297.008711,0.00045758,7]
[321414956,1712175043930,-297.008711,0.00045758,7]
[321414957,1712175043939,-297.008711,0.00045758,7]
[321414958,1712175043948,-297.008711,0.00045758,7]
[321414959,1712175043958,-297.008711,0.00045758,7]
[321414960,1712175043967,-297.008711,0.00045758,7]
[321414961,1712175043975,-331.41593695,0.00045758,4]
[321414962,1712175043985,-286.98253056,0.00045758,2]
[321414963,1712175043994,-647.44517216,0.00045758,4]
[321414964,1712175044003,-270.75127885,0.00045758,4]
[321414965,1712175044013,-3610.1120536,0.00045758,4]
[321414966,1712175044025,-3846.90976205,0.00045758,4]
[321414967,1712175044034,-416.71912349,0.00045758,4]
[321414968,1712175044042,-459.76790983,0.00045758,4]
[321414969,1712175044051,-720.02985171,0.00045758,4]
[321414970,1712175044061,-1260.11457174,0.00045758,4]
[321414971,1712175044070,-155.49227895,0.00045758,4]
[321414972,1712175044079,-250.84881624,0.00045758,4]
[321414973,1712175044088,-1698.45904266,0.00045758,4]
[321414981,1712175046396,-2933.32476269,0.00045758,4]
[321414982,1712175046405,-191.59547061,0.00045758,4]
[321414983,1712175046415,-154.98450155,0.00045759,4]
[321414984,1712175046424,-2116.8,0.0004649,2]
[321414985,1712175046433,-166.666666,0.00046578,2]
[321414986,1712175046442,-157.486947,0.00046624,7]
[321414988,1712175046451,-157.486947,0.00046624,7]
[321414990,1712175046460,-151.0,0.00046624,7]
[321414992,1712175046469,-297.008711,0.00046624,7]
[321414993,1712175046480,-297.008711,0.00046624,7]
[321414994,1712175046491,-1138.58546775,0.00047,120]
[321414995,1712175046500,-157.486947,0.00047107,7]
[321414996,1712175046509,-157.486947,0.00047107,7]
[321414997,1712175046519,-1000.0,0.000475,2]
[321414998,1712175046528,-157.486947,0.0004759,7]
[321414999,1712175046538,-157.486947,0.0004759,7]
[321415000,1712175046547,-151.0,0.0004759,7]
[321415001,1712175046557,-2116.8,0.0004759,2]
[321415002,1712175046566,-297.008711,0.0004759,7]
[321415003,1712175046575,-297.008714,0.0004759,7]
[321415004,1712175046584,-166.65314643,0.00047688,4]
[321415005,1712175046594,-309.68385601,0.00047688,4]
[321415006,1712175046603,-6416.9529425,0.00047689,4]
[321415007,1712175046613,-157.486947,0.00047689,7]
[321415008,1712175046622,-157.486947,0.00047689,7]
[321415009,1712175046725,-43947.87967868,0.0004769,120]
[321415010,1712175046739,-66199.16488856,0.0004769,120]
[321415011,1712175046751,-51733.79711745,0.0004769,120]
[321415012,1712175046761,-253.11620615,0.0004769,2]
[321415013,1712175046771,-155.45143048,0.0004769,2]
[321415014,1712175046781,-18984.5166203,0.0004769,120]
[321415015,1712175046790,-400.0,0.00048,120]
[321415016,1712175046800,-153.0,0.00048315,2]
[321415017,1712175046809,-179.257886,0.00048767,2]
[321415018,1712175046817,-150.0,0.00048815,60]
[321415019,1712175046826,-1801.54668349,0.000489,2]
[321415020,1712175046835,-169.545723,0.00048925,120]
[321415021,1712175046844,-224.94925904,0.00048997,4]
[321415022,1712175046853,-409.25019671,0.00048998,4]
[321415023,1712175046862,-699.832,0.00048998,4]
[321415024,1712175046871,-236.71,0.00048999,7]
[321415025,1712175046880,-151.0,0.00048999,7]
[321415026,1712175046888,-5293.43849642,0.00049,3]
[321415027,1712175046897,-114509.88213623,0.00049,30]
[321415028,1712175046908,-86243.02405508,0.00049,30]
[321415111,1712176233414,-306.69969689,0.00034444,2]
[321415300,1712176238481,-5708.29487461,0.00034444,2]
[321415318,1712176243546,-15383.90188389,0.00034444,2]
[321415374,1712176904975,-2110.69798225,0.00032343,2]
[321415375,1712176905000,-326.91403031,0.00032344,2]
[321415376,1712176905027,-194.81353171,0.00034343,2]
[321415377,1712176905053,-400.0,0.00034443,2]
[321415378,1712176905078,-400.0,0.00034443,2]
[321415379,1712176905103,-1817.57445573,0.00034444,2]
[321415381,1712176922849,-9726.47616492,0.00034444,2]
[321415382,1712176922875,-326.91403031,0.00037344,2]
[321415383,1712176922899,-169.545723,0.00038204,120]
[321415384,1712176922923,-2830.8177593,0.00038959,2]
[321415385,1712176922948,-256.81815355,0.00039198,4]
[321415386,1712176922973,-1482.9819565,0.000399,9]
[321415387,1712176922997,-170.0,0.0004,2]
[321415388,1712176923022,-8464.28891334,0.0004,15]
[321415389,1712176923045,-168.976997,0.0004,2]
[321415390,1712176923069,-339.506347,0.00040213,2]
[321415391,1712176923093,-166.666666,0.00041096,2]
[321415392,1712176923121,-166.666666,0.00042058,2]
[321415393,1712176923147,-3561.02576608,0.00043004,4]
[321415394,1712176923171,-1351.84977657,0.00043005,2]
[321415395,1712176923196,-166.666666,0.00043019,2]
[321415396,1712176923222,-17650.79841443,0.00043105,2]
[321415414,1712177281249,-397.20277038,0.00043105,120]
[321415415,1712177281273,-593.47774582,0.00043787,30]
[321415416,1712177281297,-3772.89268184,0.000489,120]
[321415417,1712177281319,-500.0,0.00048999,120]
[321415418,1712177281343,-500.0,0.00048999,120]
[321415419,1712177281367,-475.95078821,0.00048999,120]
[321415420,1712177281392,-210747.48063355,0.00049,30]
[321415421,1712177281415,-3363.99318723,0.00049,120]
[321415422,1712177281441,-150.0,0.00049,68]
[321415423,1712177281465,-500.0,0.00049315,120]
[321415424,1712177281487,-500.0,0.00049315,120]
[321415425,1712177281510,-500.0,0.00049315,120]
[321415426,1712177281533,-500.0,0.00049315,120]
[321415427,1712177281556,-406.33621722,0.00049315,120]
[321415428,1712177281579,-500.0,0.00049315,120]
[321415429,1712177281603,-500.0,0.00049315,120]
[321415430,1712177281626,-500.0,0.00049315,120]
[321415431,1712177281650,-178.5737379,0.00049315,120]
[321415432,1712177281674,-466.25831786,0.00049315,120]
[321415433,1712177281695,-500.0,0.00049315,120]
[321415434,1712177281717,-500.0,0.00049315,120]
[321415435,1712177281741,-500.0,0.00049315,120]
[321415436,1712177281765,-500.0,0.00049315,120]
[321415437,1712177281788,-500.0,0.00049315,120]
[321415438,1712177281812,-500.0,0.00049315,120]
[321415439,1712177281835,-500.0,0.00049315,120]
[321415440,1712177281859,-500.0,0.00049315,120]
[321415441,1712177281882,-500.0,0.00049315,120]
[321415442,1712177281905,-500.0,0.00049315,120]
[321415443,1712177281929,-500.0,0.00049315,120]
[321415444,1712177281951,-500.0,0.00049315,120]
[321415445,1712177281973,-500.0,0.00049315,120]
[321415446,1712177281997,-500.0,0.00049315,120]
[321415447,1712177282020,-500.0,0.00049315,120]
[321415448,1712177282043,-500.0,0.00049315,120]
[321415449,1712177282066,-500.0,0.00049315,120]
[321415450,1712177282088,-500.0,0.00049315,120]
[321415451,1712177282113,-500.0,0.00049315,120]
[321415452,1712177282137,-500.0,0.00049315,120]
[321415453,1712177282161,-500.0,0.00049315,120]
[321415454,1712177282186,-500.0,0.00049315,120]
[321415455,1712177282208,-500.0,0.00049315,120]
[321415456,1712177282237,-500.0,0.00049315,120]
[321415457,1712177282267,-500.0,0.00049315,120]
[321415458,1712177282290,-500.0,0.00049315,120]
[321415459,1712177282314,-500.0,0.00049315,120]
[321415460,1712177282337,-500.0,0.00049315,120]
[321415461,1712177282497,-500.0,0.00049315,120]
[321415462,1712177282522,-500.0,0.00049315,120]
[321415463,1712177282546,-365.361243,0.00049315,120]
[321415464,1712177282570,-582.7962362,0.00049315,120]
[321415465,1712177282596,-257.80429759,0.00049315,120]
[321415466,1712177282621,-500.0,0.00049315,120]
[321415467,1712177282645,-232.0,0.00049315,120]
[321415468,1712177282669,-155.41404526,0.00049315,120]
[321415469,1712177282693,-500.0,0.00049315,120]
[321415470,1712177282718,-500.0,0.00049315,120]
[321415471,1712177282742,-500.0,0.00049315,120]
[321415472,1712177282765,-535.39182771,0.00049315,120]
[321415473,1712177282789,-589.63,0.00049315,120]
[321415474,1712177282812,-504.63085644,0.00049315,120]
[321415475,1712177282836,-7205.42,0.00049315,120]
[321415476,1712177282858,-7205.42,0.00049315,120]
[321415477,1712177282882,-7205.42,0.00049315,120]
[321415478,1712177282904,-7205.42,0.00049315,120]
[321415479,1712177282927,-7205.42,0.00049315,120]
[321415480,1712177282951,-7205.42,0.00049315,120]
[321415481,1712177282975,-7205.42,0.00049315,120]
[321415482,1712177282997,-7205.42,0.00049315,120]
[321415483,1712177283022,-7205.42,0.00049315,120]
[321415484,1712177283044,-7205.42,0.00049315,120]
[321415485,1712177283068,-7205.42,0.00049315,120]
[321415486,1712177283091,-7205.42,0.00049315,120]
[321415487,1712177283126,-7205.42,0.00049315,120]
[321415488,1712177283154,-7205.42,0.00049315,120]
[321415489,1712177283178,-7205.42,0.00049315,120]
[321415490,1712177283200,-7205.42,0.00049315,120]
[321415491,1712177283224,-7205.42,0.00049315,120]
[321415492,1712177283247,-7205.42,0.00049315,120]
[321415493,1712177283270,-7205.42,0.00049315,120]
[321415494,1712177283294,-7205.42,0.00049315,120]
[321415495,1712177283318,-7205.42,0.00049315,120]
[321415496,1712177283342,-7205.42,0.00049315,120]
[321415497,1712177283366,-7205.42,0.00049315,120]
[321415498,1712177283389,-7205.63474889,0.00049315,120]
[321415499,1712177283411,-500.0,0.00049315,120]
[321415500,1712177283434,-549.7,0.00049315,120]
[321415501,1712177283457,-500.0,0.00049315,120]
[321415502,1712177283480,-500.0,0.00049315,120]
[321415503,1712177283503,-500.0,0.00049315,120]
[321415504,1712177283527,-500.0,0.00049315,120]
[321415505,1712177283560,-500.0,0.00049315,120]
[321415506,1712177283591,-500.0,0.00049315,120]
[321415507,1712177283616,-500.0,0.00049315,120]
[321415508,1712177283646,-500.0,0.00049315,120]
[321415509,1712177283677,-500.0,0.00049315,120]
[321415510,1712177283706,-500.0,0.00049315,120]
[321415511,1712177283736,-500.0,0.00049315,120]
[321415512,1712177283764,-500.0,0.00049315,120]
[321415513,1712177283792,-500.0,0.00049315,120]
[321415514,1712177283820,-500.0,0.00049315,120]
[321415515,1712177283848,-500.0,0.00049315,120]
[321415516,1712177283875,-500.0,0.00049315,120]
[321415517,1712177283904,-500.0,0.00049315,120]
[321415518,1712177283932,-500.0,0.00049315,120]
[321415519,1712177283959,-500.0,0.00049315,120]
[321415520,1712177283987,-602.122711,0.00049315,120]
[321415521,1712177284016,-500.0,0.00049315,120]
[321415522,1712177284047,-502.83027488,0.00049315,120]
[321415523,1712177284077,-516.26434082,0.00049315,120]
[321415524,1712177284109,-321.64203232,0.00049315,120]
[321415525,1712177284151,-500.0,0.00049315,120]
[321415526,1712177284185,-500.0,0.00049315,120]
[321415527,1712177284221,-500.0,0.00049315,120]
[321415528,1712177284255,-500.0,0.00049315,120]
[321415529,1712177284290,-500.0,0.00049315,120]
[321415530,1712177284317,-500.0,0.00049315,120]
[321415531,1712177284345,-500.0,0.00049315,120]
[321415532,1712177284375,-500.0,0.00049315,120]
[321415533,1712177284407,-500.0,0.00049315,120]
[321415534,1712177284444,-500.0,0.00049315,120]
[321415535,1712177284477,-500.0,0.00049315,120]
[321415536,1712177284508,-500.0,0.00049315,120]
[321415537,1712177284538,-500.0,0.00049315,120]
[321415538,1712177284569,-201.62717178,0.00049315,120]
[321415539,1712177284597,-500.0,0.00049315,120]
[321415540,1712177284627,-500.0,0.00049315,120]
[321415541,1712177284655,-605.08592402,0.00049315,120]
[321415542,1712177284683,-502.64,0.00049315,120]
[321415543,1712177284710,-502.64,0.00049315,120]
[321415544,1712177284739,-502.64,0.00049315,120]
[321415545,1712177284765,-552.43443528,0.00049315,120]
[321415546,1712177284791,-502.64,0.00049315,120]
[321415547,1712177284955,-502.64,0.00049315,120]
[321415548,1712177284979,-502.64,0.00049315,120]
[321415549,1712177285002,-502.64,0.00049315,120]
[321415550,1712177285025,-502.64,0.00049315,120]
[321415551,1712177285048,-500.0,0.00049315,120]
[321415552,1712177285071,-502.64,0.00049315,120]
[321415553,1712177285093,-500.0,0.00049315,120]
[321415554,1712177285118,-502.64,0.00049315,120]
[321415555,1712177285142,-500.0,0.00049315,120]
[321415556,1712177285165,-502.64,0.00049315,120]
[321415557,1712177285191,-500.0,0.00049315,120]
[321415558,1712177285213,-500.0,0.00049315,120]
[321415559,1712177285236,-502.64,0.00049315,120]
[321415560,1712177285259,-500.0,0.00049315,120]
[321415561,1712177285282,-502.64,0.00049315,120]
[321415562,1712177285305,-500.0,0.00049315,120]
[321415563,1712177285330,-502.64,0.00049315,120]
[321415564,1712177285353,-500.0,0.00049315,120]
[321415565,1712177285376,-502.64,0.00049315,120]
[321415566,1712177285400,-500.0,0.00049315,120]
[321415567,1712177285426,-502.64,0.00049315,120]
[321415568,1712177285449,-500.0,0.00049315,120]
[321415569,1712177285473,-502.64,0.00049315,120]
[321415570,1712177285497,-500.0,0.00049315,120]
[321415571,1712177285520,-502.64,0.00049315,120]
[321415572,1712177285544,-500.0,0.00049315,120]
[321415573,1712177285567,-502.64,0.00049315,120]
[321415574,1712177285590,-502.64,0.00049315,120]
[321415575,1712177285613,-500.0,0.00049315,120]
[321415576,1712177285638,-502.64,0.00049315,120]
[321415577,1712177285661,-500.0,0.00049315,120]
[321415578,1712177285686,-500.0,0.00049315,120]
[321415579,1712177285709,-502.64,0.00049315,120]
[321415580,1712177285732,-500.0,0.00049315,120]
[321415581,1712177285756,-500.0,0.00049315,120]
[321415582,1712177285779,-502.64,0.00049315,120]
[321415583,1712177285802,-500.0,0.00049315,120]
[321415584,1712177285824,-500.0,0.00049315,120]
[321415585,1712177285848,-502.6856022,0.00049315,120]
[321415586,1712177285870,-500.0,0.00049315,120]
[321415587,1712177285894,-500.0,0.00049315,120]
[321415588,1712177285917,-500.0,0.00049315,120]
[321415589,1712177285943,-500.0,0.00049315,120]
[321415590,1712177285966,-500.0,0.00049315,120]
[321415591,1712177285990,-500.0,0.00049315,120]
[321415592,1712177286013,-500.0,0.00049315,120]
[321415593,1712177286036,-500.0,0.00049315,120]
[321415594,1712177286059,-500.0,0.00049315,120]
[321415595,1712177286082,-500.0,0.00049315,120]
[321415596,1712177286105,-500.0,0.00049315,120]
[321415597,1712177286130,-500.0,0.00049315,120]
[321415598,1712177286154,-500.0,0.00049315,120]
[321415599,1712177286179,-500.0,0.00049315,120]
[321415600,1712177286202,-500.0,0.00049315,120]
[321415601,1712177286226,-500.0,0.00049315,120]
[321415602,1712177286250,-500.0,0.00049315,120]
[321415603,1712177286274,-500.0,0.00049315,120]
[321415604,1712177286297,-500.0,0.00049315,120]
[321415605,1712177286321,-558.67193618,0.00049315,120]
[321415606,1712177286344,-500.0,0.00049315,120]
[321415607,1712177286368,-500.0,0.00049315,120]
[321415608,1712177286391,-500.0,0.00049315,120]
[321415609,1712177286414,-500.0,0.00049315,120]
[321415610,1712177286439,-500.0,0.00049315,120]
[321415611,1712177286463,-500.0,0.00049315,120]
[321415612,1712177286486,-500.0,0.00049315,120]
[321415613,1712177286510,-500.0,0.00049315,120]
[321415614,1712177286532,-500.0,0.00049315,120]
[321415615,1712177286555,-500.0,0.00049315,120]
[321415616,1712177286578,-500.0,0.00049315,120]
[321415617,1712177286601,-500.0,0.00049315,120]
[321415618,1712177286626,-500.0,0.00049315,120]
[321415619,1712177286651,-500.0,0.00049315,120]
[321415620,1712177286679,-500.0,0.00049315,120]
[321415621,1712177286702,-500.0,0.00049315,120]
[321415622,1712177286725,-500.0,0.00049315,120]
[321415623,1712177286748,-500.0,0.00049315,120]
[321415624,1712177286772,-500.0,0.00049315,120]
[321415625,1712177286795,-243.69,0.00049315,120]
[321415626,1712177286818,-319.88493817,0.00049315,120]
[321415627,1712177286840,-500.0,0.00049315,120]
[321415628,1712177286863,-500.0,0.00049315,120]
[321415629,1712177286886,-500.0,0.00049315,120]
[321415630,1712177286910,-500.0,0.00049315,120]
[321415631,1712177286933,-486.42738493,0.00049315,120]
[321415632,1712177286956,-668.05,0.00049315,120]
[321415633,1712177286983,-668.05,0.00049315,120]
[321415634,1712177287023,-668.05,0.00049315,120]
[321415635,1712177287054,-668.05,0.00049315,120]
[321415636,1712177287077,-500.0,0.00049315,120]
[321415637,1712177287100,-668.05,0.00049315,120]
[321415638,1712177287126,-500.0,0.00049315,120]
[321415639,1712177287149,-668.05,0.00049315,120]
[321415640,1712177287172,-500.0,0.00049315,120]
[321415641,1712177287197,-500.0,0.00049315,120]
[321415642,1712177287219,-668.05,0.00049315,120]
[321415643,1712177287242,-500.0,0.00049315,120]
[321415644,1712177287266,-668.05,0.00049315,120]
[321415645,1712177287290,-500.0,0.00049315,120]
[321415646,1712177287312,-668.05,0.00049315,120]
[321415647,1712177287335,-500.0,0.00049315,120]
[321415648,1712177287476,-668.05,0.00049315,120]
[321415649,1712177287502,-500.0,0.00049315,120]
[321415650,1712177287526,-668.05,0.00049315,120]
[321415651,1712177287550,-500.0,0.00049315,120]
[321415652,1712177287574,-595.9,0.00049315,120]
[321415653,1712177287597,-668.05,0.00049315,120]
[321415654,1712177287620,-668.05,0.00049315,120]
[321415655,1712177287646,-668.05,0.00049315,120]
[321415656,1712177287670,-668.05,0.00049315,120]
[321415657,1712177287696,-500.0,0.00049315,120]
[321415658,1712177287721,-668.05,0.00049315,120]
[321415659,1712177287745,-500.0,0.00049315,120]